[Event "Rapid Tournament (RAP)"]
[Site "Biel, Switzerland"]
[Date "2026.07.12"]
[Round "8.30"]
[White "Villiger, Jan"]
[Black "Laub, Patrick"]
[Result "0-1"]
[TimeControl "15 + 5"]
[WhiteTitle "-"]
[BlackTitle "-"]
[WhiteFideId "1340891"]
[BlackFideId "1302566"]
[WhiteElo "1846"]
[BlackElo "1949"]

1. e4 {[%clk 00:15:08]} {[%emt 00:00:02]} c6 {[%clk 00:11:25]} {[%emt
00:03:47]} 2. d4 {[%clk 00:15:10]} {[%emt 00:00:02]} d5 {[%clk 00:11:23]}
{[%emt 00:00:06]} 3. e5 {[%clk 00:15:14]} {[%emt 00:00:02]} Bf5 {[%clk
00:11:27]} {[%emt 00:00:02]} 4. Nd2 {[%clk 00:15:17]} {[%emt 00:00:01]} e6
{[%clk 00:11:29]} {[%emt 00:00:03]} 5. Nb3 {[%clk 00:15:20]} {[%emt 00:00:01]}
Nd7 {[%clk 00:11:18]} {[%emt 00:00:17]} 6. Nf3 {[%clk 00:15:23]} {[%emt
00:00:02]} Be7 {[%clk 00:11:13]} {[%emt 00:00:10]} 7. Be2 {[%clk 00:15:23]}
{[%emt 00:00:05]} h5 {[%clk 00:10:30]} {[%emt 00:00:47]} 8. O-O {[%clk
00:15:17]} {[%emt 00:00:11]} h4 {[%clk 00:10:15]} {[%emt 00:00:21]} 9. h3
{[%clk 00:15:18]} {[%emt 00:00:04]} c5 {[%clk 00:09:29]} {[%emt 00:00:51]} 10.
dxc5 {[%clk 00:15:16]} {[%emt 00:00:07]} Nxc5 {[%clk 00:09:27]} {[%emt
00:00:07]} 11. Bb5+ {[%clk 00:15:05]} {[%emt 00:00:16]} Kf8 {[%clk 00:09:29]}
{[%emt 00:00:03]} 12. Nfd4 {[%clk 00:14:53]} {[%emt 00:00:16]} Be4 {[%clk
00:08:17]} {[%emt 00:01:17]} 13. Be3 {[%clk 00:14:12]} {[%emt 00:00:47]} Rc8
{[%clk 00:06:51]} {[%emt 00:01:31]} 14. Be2 {[%clk 00:12:49]} {[%emt 00:01:28]}
Nh6 {[%clk 00:06:51]} {[%emt 00:00:04]} 15. Bf3 {[%clk 00:11:47]} {[%emt
00:01:08]} Bg6 {[%clk 00:06:25]} {[%emt 00:00:30]} 16. Bh5 {[%clk 00:10:23]}
{[%emt 00:01:30]} Be4 {[%clk 00:05:12]} {[%emt 00:01:17]} 17. Bg4 {[%clk
00:08:03]} {[%emt 00:02:25]} Nxg4 {[%clk 00:04:16]} {[%emt 00:01:01]} 18. Qxg4
{[%clk 00:08:01]} {[%emt 00:00:07]} Nd7 {[%clk 00:04:15]} {[%emt 00:00:06]} 19.
Qf4 {[%clk 00:03:54]} {[%emt 00:04:13]} Kg8 {[%clk 00:03:39]} {[%emt 00:00:39]}
20. Nb5 {[%clk 00:02:38]} {[%emt 00:01:22]} a6 {[%clk 00:03:14]} {[%emt
00:00:31]} 21. Na7 {[%clk 00:00:35]} {[%emt 00:02:08]} Rc4 {[%clk 00:02:54]}
{[%emt 00:00:25]} 22. Nd2 {[%clk 00:00:26]} {[%emt 00:00:13]} Bxg2 {[%clk
00:01:53]} {[%emt 00:01:06]} 23. Nxc4 {[%clk 00:00:30]} {[%emt 00:00:02]} Bxf1
{[%clk 00:01:56]} {[%emt 00:00:01]} 24. Rxf1 {[%clk 00:00:14]} {[%emt
00:00:21]} dxc4 {[%clk 00:02:00]} {[%emt 00:00:02]} 25. Rd1 {[%clk 00:00:17]}
{[%emt 00:00:01]} Qc7 {[%clk 00:01:54]} {[%emt 00:00:11]} 26. b3 {[%clk
00:00:08]} {[%emt 00:00:15]} c3 {[%clk 00:01:37]} {[%emt 00:00:21]} 0-1

[Event "Rapid Tournament (RAP)"]
[Site "Biel, Switzerland"]
[Date "2026.07.12"]
[Round "8.31"]
[White "Wilhelm, Serge"]
[Black "Carey, Michael"]
[Result "0-1"]
[TimeControl "15 + 5"]
[WhiteTitle "-"]
[BlackTitle "-"]
[WhiteFideId "1305808"]
[BlackFideId "30923760"]
[WhiteElo "1923"]
[BlackElo "1850"]

1. Nf3 {[%clk 00:15:09]} {[%emt 00:00:01]} c5 {[%clk 00:15:09]} {[%emt
00:00:01]} 2. g3 {[%clk 00:15:11]} {[%emt 00:00:04]} g6 {[%clk 00:15:12]} 3. d3
{[%clk 00:15:14]} {[%emt 00:00:01]} Bg7 {[%clk 00:15:16]} {[%emt 00:00:02]} 4.
Bg2 {[%clk 00:15:14]} {[%emt 00:00:04]} Nc6 {[%clk 00:15:20]} {[%emt 00:00:02]}
5. e4 {[%clk 00:15:17]} {[%emt 00:00:01]} d6 {[%clk 00:15:16]} {[%emt
00:00:10]} 6. Nbd2 {[%clk 00:15:18]} {[%emt 00:00:03]} e5 {[%clk 00:15:08]}
{[%emt 00:00:14]} 7. O-O {[%clk 00:15:14]} {[%emt 00:00:09]} Nge7 {[%clk
00:15:10]} {[%emt 00:00:02]} 8. c3 {[%clk 00:15:09]} {[%emt 00:00:11]} O-O
{[%clk 00:15:07]} {[%emt 00:00:08]} 9. Nc4 {[%clk 00:14:39]} {[%emt 00:00:35]}
h6 {[%clk 00:14:19]} {[%emt 00:00:52]} 10. a4 {[%clk 00:14:16]} {[%emt
00:00:28]} Be6 {[%clk 00:13:54]} {[%emt 00:00:30]} 11. Ne3 {[%clk 00:14:00]}
{[%emt 00:00:22]} d5 {[%clk 00:13:38]} {[%emt 00:00:21]} 12. Qe2 {[%clk
00:12:23]} {[%emt 00:01:42]} Rc8 {[%clk 00:12:50]} {[%emt 00:00:53]} 13. Bd2
{[%clk 00:11:28]} {[%emt 00:01:01]} b6 {[%clk 00:12:09]} {[%emt 00:00:45]} 14.
c4 {[%clk 00:09:39]} {[%emt 00:01:54]} dxe4 {[%clk 00:10:28]} {[%emt 00:01:46]}
15. dxe4 {[%clk 00:09:42]} {[%emt 00:00:02]} Nd4 {[%clk 00:09:53]} {[%emt
00:00:40]} 16. Qd1 {[%clk 00:09:18]} {[%emt 00:00:30]} Nec6 {[%clk 00:08:23]}
{[%emt 00:01:34]} 17. Nd5 {[%clk 00:09:10]} {[%emt 00:00:13]} Bg4 {[%clk
00:07:46]} {[%emt 00:00:41]} 18. Bc3 {[%clk 00:07:46]} {[%emt 00:01:30]} f5
{[%clk 00:06:23]} {[%emt 00:01:28]} 19. h3 {[%clk 00:05:40]} {[%emt 00:02:12]}
fxe4 {[%clk 00:03:52]} {[%emt 00:02:35]} 20. hxg4 {[%clk 00:05:38]} {[%emt
00:00:07]} exf3 {[%clk 00:03:55]} {[%emt 00:00:02]} 21. Bh3 {[%clk 00:05:14]}
{[%emt 00:00:28]} g5 {[%clk 00:03:27]} {[%emt 00:00:34]} 22. Re1 {[%clk
00:04:37]} {[%emt 00:00:42]} Qd7 {[%clk 00:02:57]} {[%emt 00:00:34]} 23. Qd3
{[%clk 00:04:26]} {[%emt 00:00:16]} Rce8 {[%clk 00:02:31]} {[%emt 00:00:32]} 24.
Re4 {[%clk 00:04:20]} {[%emt 00:00:10]} Rf7 {[%clk 00:01:53]} {[%emt 00:00:44]}
25. Kh2 {[%clk 00:04:10]} {[%emt 00:00:14]} Ne7 {[%clk 00:01:20]} {[%emt
00:00:38]} 26. Ne3 {[%clk 00:02:50]} {[%emt 00:01:25]} Qc6 {[%clk 00:00:56]}
{[%emt 00:00:29]} 27. Bf1 {[%clk 00:01:27]} {[%emt 00:01:30]} Nc8 {[%clk
00:00:40]} {[%emt 00:00:21]} 28. Nc2 {[%clk 00:00:56]} {[%emt 00:00:36]} Nd6
{[%clk 00:00:35]} {[%emt 00:00:09]} 29. Ree1 {[%clk 00:00:59]} {[%emt
00:00:01]} e4 {[%clk 00:00:30]} {[%emt 00:00:11]} 30. Qd1 {[%clk 00:01:03]}
{[%emt 00:00:01]} Nxc2 {[%clk 00:00:17]} {[%emt 00:00:17]} 31. Qxc2 {[%clk
00:01:06]} {[%emt 00:00:02]} Rd7 {[%clk 00:00:13]} {[%emt 00:00:10]} 32. Re3
{[%clk 00:00:44]} {[%emt 00:00:28]} Nf7 {[%clk 00:00:10]} {[%emt 00:00:08]} 33.
Rae1 {[%clk 00:00:38]} {[%emt 00:00:09]} Ne5 {[%clk 00:00:09]} {[%emt
00:00:07]} 34. Rxe4 {[%clk 00:00:33]} {[%emt 00:00:11]} Rde7 {[%clk 00:00:09]}
{[%emt 00:00:04]} 35. Bxe5 {[%clk 00:00:21]} {[%emt 00:00:17]} Rxe5 {[%clk
00:00:09]} {[%emt 00:00:05]} 36. Rxe5 {[%clk 00:00:19]} {[%emt 00:00:07]} Rxe5
{[%clk 00:00:13]} {[%emt 00:00:01]} 37. Rxe5 {[%clk 00:00:20]} {[%emt
00:00:03]} Bxe5 {[%clk 00:00:18]} 38. Qe4 {[%clk 00:00:18]} {[%emt 00:00:07]}
Qxe4 {[%clk 00:00:21]} {[%emt 00:00:02]} 39. Bd3 {[%emt 00:00:33]} 0-1

[Event "Rapid Tournament (RAP)"]
[Site "Biel, Switzerland"]
[Date "2026.07.12"]
[Round "8.32"]
[White "Aryan, Mehta"]
[Black "Radovcic, Branimir"]
[Result "1-0"]
[TimeControl "15 + 5"]
[WhiteTitle "-"]
[BlackTitle "-"]
[WhiteFideId "33329664"]
[BlackFideId "14595346"]
[WhiteElo "1921"]
[BlackElo "1840"]

1. d4 {[%clk 00:15:09]} {[%emt 00:00:01]} Nf6 {[%clk 00:15:09]} 2. c4 {[%clk
00:15:13]} {[%emt 00:00:01]} c5 {[%clk 00:15:13]} {[%emt 00:00:01]} 3. d5
{[%clk 00:15:16]} {[%emt 00:00:03]} b5 {[%clk 00:15:17]} 4. cxb5 {[%clk
00:15:19]} {[%emt 00:00:01]} a6 {[%clk 00:15:21]} 5. bxa6 {[%clk 00:15:23]}
{[%emt 00:00:01]} Bxa6 {[%clk 00:15:25]} {[%emt 00:00:01]} 6. Nc3 {[%clk
00:15:26]} {[%emt 00:00:02]} g6 {[%clk 00:15:11]} {[%emt 00:00:19]} 7. e4
{[%clk 00:15:27]} {[%emt 00:00:03]} Bxf1 {[%clk 00:15:14]} {[%emt 00:00:02]} 8.
Kxf1 {[%clk 00:15:30]} {[%emt 00:00:02]} d6 {[%clk 00:15:18]} {[%emt 00:00:02]}
9. g3 {[%clk 00:15:32]} {[%emt 00:00:02]} Bg7 {[%clk 00:15:21]} {[%emt
00:00:02]} 10. Nf3 {[%clk 00:15:35]} {[%emt 00:00:02]} Nbd7 {[%clk 00:15:25]}
{[%emt 00:00:02]} 11. h3 {[%clk 00:15:38]} {[%emt 00:00:02]} O-O {[%clk
00:15:28]} {[%emt 00:00:02]} 12. Kg2 {[%clk 00:15:41]} Qa5 {[%clk 00:15:31]}
{[%emt 00:00:03]} 13. Re1 {[%clk 00:15:43]} {[%emt 00:00:02]} Rfb8 {[%clk
00:15:27]} {[%emt 00:00:10]} 14. e5 {[%clk 00:15:41]} {[%emt 00:00:07]} Nxe5
{[%clk 00:12:48]} {[%emt 00:02:43]} 15. Nxe5 {[%clk 00:15:44]} {[%emt
00:00:02]} dxe5 {[%clk 00:12:51]} {[%emt 00:00:02]} 16. Rxe5 {[%clk 00:15:47]}
{[%emt 00:00:02]} Nh5 {[%clk 00:12:23]} {[%emt 00:00:33]} 17. Rxe7 {[%clk
00:15:03]} {[%emt 00:00:49]} Bxc3 {[%clk 00:12:22]} {[%emt 00:00:06]} 18. bxc3
{[%clk 00:15:07]} {[%emt 00:00:02]} Qxc3 {[%clk 00:12:25]} {[%emt 00:00:01]} 19.
Be3 {[%clk 00:15:00]} {[%emt 00:00:11]} Rb2 {[%clk 00:11:35]} {[%emt 00:00:56]}
20. Qf3 {[%clk 00:13:19]} {[%emt 00:01:46]} Nf6 {[%clk 00:10:33]} {[%emt
00:01:08]} 21. Rc1 {[%clk 00:12:56]} {[%emt 00:00:27]} Qa5 {[%clk 00:04:17]}
{[%emt 00:06:21]} 22. Qxf6 {[%clk 00:12:50]} {[%emt 00:00:11]} Rf8 {[%clk
00:04:20]} {[%emt 00:00:02]} 23. Qxb2 {[%clk 00:12:49]} {[%emt 00:00:06]} Qd8
{[%clk 00:04:18]} {[%emt 00:00:08]} 24. Qe5 {[%clk 00:12:47]} {[%emt 00:00:06]}
Qb6 {[%clk 00:03:54]} {[%emt 00:00:29]} 25. Bxc5 {[%clk 00:12:32]} {[%emt
00:00:19]} 1-0

[Event "Rapid Tournament (RAP)"]
[Site "Biel, Switzerland"]
[Date "2026.07.12"]
[Round "8.33"]
[White "Gireada, Lucas"]
[Black "Lopez, Manuel"]
[Result "1-0"]
[TimeControl "15 + 5"]
[WhiteTitle "-"]
[BlackTitle "-"]
[WhiteFideId "1373544"]
[BlackFideId "1306324"]
[WhiteElo "1837"]
[BlackElo "1916"]

1. d4 {[%emt 00:02:28]} Nf6 {[%emt 00:00:01]} 2. c4 {[%emt 00:00:01]} g6 {[%emt
00:00:07]} 3. Nc3 {[%emt 00:00:02]} Bg7 {[%emt 00:00:02]} 4. e4 {[%emt
00:00:01]} d6 {[%emt 00:00:01]} 5. h3 {[%emt 00:00:02]} Nbd7 {[%emt 00:00:12]}
6. Be3 {[%emt 00:00:03]} e5 {[%emt 00:00:02]} 7. d5 {[%emt 00:00:07]} O-O
{[%emt 00:00:05]} 8. g4 {[%emt 00:00:06]} a5 {[%emt 00:00:02]} 9. Nge2 {[%emt
00:00:03]} b6 {[%emt 00:00:03]} 10. Ng3 {[%emt 00:00:06]} Nc5 {[%emt 00:00:03]}
11. Be2 {[%emt 00:00:12]} Bd7 {[%emt 00:00:03]} 12. f3 {[%emt 00:00:30]} Ne8
{[%emt 00:00:53]} 13. h4 {[%emt 00:00:03]} Kh8 {[%emt 00:00:21]} 14. Qd2 {[%emt
00:00:14]} Na4 {[%emt 00:00:14]} 15. Nxa4 {[%emt 00:00:44]} Bxa4 {[%emt
00:00:02]} 16. b3 {[%emt 00:00:02]} Bd7 17. h5 {[%clk 00:13:59]} {[%emt
00:00:01]} Qe7 {[%clk 00:12:34]} 18. h6 {[%clk 00:13:02]} {[%emt 00:02:56]} Bf6
{[%clk 00:12:33]} {[%emt 00:00:05]} 19. g5 {[%clk 00:13:06]} Bxg5 {[%clk
00:12:37]} {[%emt 00:00:02]} 20. Bxg5 {[%clk 00:13:10]} {[%emt 00:00:01]} f6
{[%clk 00:12:42]} 21. Be3 {[%clk 00:13:08]} {[%emt 00:00:07]} f5 {[%clk
00:12:42]} {[%emt 00:00:05]} 22. exf5 {[%clk 00:11:54]} {[%emt 00:01:18]} gxf5
{[%clk 00:12:45]} {[%emt 00:00:02]} 23. f4 {[%clk 00:11:53]} {[%emt 00:00:07]}
Rg8 {[%clk 00:12:34]} {[%emt 00:00:15]} 24. Rh3 {[%clk 00:11:33]} {[%emt
00:00:25]} Nf6 {[%clk 00:12:26]} {[%emt 00:00:13]} 25. O-O-O {[%clk 00:11:10]}
{[%emt 00:00:28]} a4 {[%clk 00:12:30]} {[%emt 00:00:02]} 26. b4 {[%clk
00:10:26]} {[%emt 00:00:49]} Qe8 {[%clk 00:11:37]} {[%emt 00:00:58]} 27. b5
{[%clk 00:10:21]} {[%emt 00:00:10]} a3 {[%clk 00:10:27]} {[%emt 00:01:15]} 28.
Qc2 {[%emt 00:01:24]} Ng4 {[%clk 00:09:51]} 29. Bxg4 {[%clk 00:09:26]} {[%emt
00:00:21]} fxg4 {[%clk 00:09:00]} {[%emt 00:00:56]} 30. Rh5 {[%clk 00:09:08]}
{[%emt 00:00:24]} Qf7 {[%clk 00:08:42]} {[%emt 00:00:23]} 31. fxe5 {[%clk
00:08:36]} {[%emt 00:00:37]} dxe5 {[%clk 00:08:21]} {[%emt 00:00:26]} 32. Rxe5
{[%clk 00:08:16]} {[%emt 00:00:25]} Rg6 {[%clk 00:08:05]} {[%emt 00:00:21]} 33.
Rf1 {[%clk 00:07:29]} {[%emt 00:00:51]} Rf6 {[%clk 00:08:05]} {[%emt 00:00:05]}
34. Rxf6 {[%clk 00:07:13]} {[%emt 00:00:21]} Qxf6 {[%clk 00:08:09]} {[%emt
00:00:01]} 35. Bd4 {[%clk 00:07:08]} {[%emt 00:00:10]} Qxh6+ {[%clk 00:08:13]}
{[%emt 00:00:01]} 36. Kb1 {[%clk 00:06:28]} {[%emt 00:00:46]} Kg8 {[%clk
00:08:00]} {[%emt 00:00:17]} 37. Re7 {[%clk 00:05:36]} {[%emt 00:00:57]} Be8
{[%clk 00:07:42]} {[%emt 00:00:23]} 38. Rg7+ {[%clk 00:05:31]} {[%emt
00:00:10]} Qxg7 {[%clk 00:07:12]} {[%emt 00:00:35]} 39. Bxg7 {[%clk 00:05:34]}
{[%emt 00:00:02]} Bg6 {[%clk 00:07:15]} {[%emt 00:00:02]} 40. Nf5 {[%clk
00:05:34]} {[%emt 00:00:05]} Re8 {[%clk 00:06:16]} {[%emt 00:01:05]} 41. Qf2
{[%clk 00:05:13]} {[%emt 00:00:25]} Bxf5+ {[%clk 00:03:47]} {[%emt 00:02:35]}
42. Qxf5 {[%clk 00:05:14]} {[%emt 00:00:03]} Kxg7 {[%clk 00:03:50]} {[%emt
00:00:02]} 43. Qxg4+ {[%clk 00:05:16]} {[%emt 00:00:04]} Kf7 {[%clk 00:03:52]}
{[%emt 00:00:02]} 44. Qf5+ {[%clk 00:05:14]} {[%emt 00:00:07]} Ke7 {[%clk
00:03:45]} {[%emt 00:00:13]} 45. Qxh7+ {[%clk 00:05:16]} {[%emt 00:00:02]} Kd8
{[%clk 00:03:50]} 46. Qh4+ {[%clk 00:04:58]} {[%emt 00:00:24]} Kd7 {[%clk
00:03:48]} {[%emt 00:00:07]} 47. Qf6 {[%clk 00:04:42]} {[%emt 00:00:20]} Re1+
{[%clk 00:03:46]} {[%emt 00:00:07]} 48. Kc2 {[%clk 00:04:47]} Re2+ {[%clk
00:03:48]} {[%emt 00:00:02]} 49. Kb3 {[%clk 00:04:51]} Re3+ {[%clk 00:03:51]}
{[%emt 00:00:03]} 50. Kb4 {[%clk 00:04:53]} {[%emt 00:00:02]} Kc8 {[%clk
00:03:33]} {[%emt 00:00:20]} 51. Qc6 {[%clk 00:04:48]} {[%emt 00:00:13]} Re7
{[%clk 00:03:11]} {[%emt 00:00:28]} 52. d6 {[%clk 00:04:38]} {[%emt 00:00:15]}
Rd7 {[%clk 00:03:15]} 53. Qa8# {[%clk 00:04:37]} {[%emt 00:00:06]} 1-0

[Event "Rapid Tournament (RAP)"]
[Site "Biel, Switzerland"]
[Date "2026.07.12"]
[Round "8.34"]
[White "Ivarsson, Anders"]
[Black "Yang, Sung-Jui"]
[Result "1-0"]
[TimeControl "15 + 5"]
[WhiteTitle "-"]
[BlackTitle "-"]
[WhiteFideId "1768158"]
[BlackFideId "16301048"]
[WhiteElo "1907"]
[BlackElo "1825"]

1. Nf3 {[%emt 00:00:03]} d5 {[%clk 00:15:09]} 2. c4 {[%clk 00:15:13]} {[%emt
00:00:01]} e6 {[%clk 00:15:13]} {[%emt 00:00:01]} 3. g3 {[%clk 00:15:17]}
{[%emt 00:00:03]} Nf6 {[%clk 00:15:17]} 4. Bg2 {[%clk 00:15:20]} Be7 {[%clk
00:15:20]} {[%emt 00:00:02]} 5. O-O {[%clk 00:15:22]} {[%emt 00:00:02]} O-O
{[%clk 00:15:23]} {[%emt 00:00:03]} 6. a4 {[%clk 00:15:25]} {[%emt 00:00:02]}
d4 {[%clk 00:15:04]} {[%emt 00:00:25]} 7. e3 {[%clk 00:15:07]} {[%emt
00:00:23]} c5 {[%clk 00:15:08]} {[%emt 00:00:01]} 8. exd4 {[%clk 00:15:06]}
{[%emt 00:00:06]} cxd4 {[%clk 00:15:12]} 9. d3 {[%clk 00:15:10]} {[%emt
00:00:01]} Nc6 {[%clk 00:15:16]} {[%emt 00:00:01]} 10. Re1 {[%clk 00:14:55]}
{[%emt 00:00:19]} Bd6 {[%clk 00:15:17]} {[%emt 00:00:05]} 11. Nbd2 {[%clk
00:14:21]} {[%emt 00:00:38]} e5 {[%clk 00:15:05]} {[%emt 00:00:17]} 12. Ng5
{[%clk 00:14:10]} {[%emt 00:00:16]} Bf5 {[%clk 00:14:43]} {[%emt 00:00:27]} 13.
Nge4 {[%clk 00:14:08]} {[%emt 00:00:07]} Be7 {[%clk 00:14:37]} {[%emt
00:00:11]} 14. h3 {[%clk 00:13:35]} {[%emt 00:00:38]} h6 {[%clk 00:14:40]}
{[%emt 00:00:02]} 15. Kh2 {[%clk 00:13:06]} {[%emt 00:00:33]} Nb4 {[%clk
00:14:23]} {[%emt 00:00:24]} 16. Qb3 {[%clk 00:12:06]} {[%emt 00:01:04]} Rb8
{[%clk 00:14:01]} {[%emt 00:00:27]} 17. Nxf6+ {[%clk 00:11:30]} {[%emt
00:00:41]} gxf6 {[%clk 00:14:04]} {[%emt 00:00:02]} 18. Ne4 {[%clk 00:11:26]}
{[%emt 00:00:09]} Kh7 {[%clk 00:13:20]} {[%emt 00:00:49]} 19. a5 {[%clk
00:10:47]} {[%emt 00:00:45]} Be6 {[%clk 00:12:27]} {[%emt 00:00:57]} 20. Qd1
{[%clk 00:10:08]} {[%emt 00:00:43]} f5 {[%clk 00:12:10]} {[%emt 00:00:23]} 21.
Qh5 {[%clk 00:09:52]} {[%emt 00:00:21]} fxe4 {[%clk 00:11:53]} {[%emt
00:00:22]} 22. Bxe4+ {[%clk 00:09:24]} {[%emt 00:00:33]} f5 {[%clk 00:09:46]}
{[%emt 00:02:12]} 23. Qxh6+ {[%clk 00:09:26]} {[%emt 00:00:03]} Kg8 {[%clk
00:09:50]} {[%emt 00:00:02]} 24. Qxe6+ {[%clk 00:09:28]} {[%emt 00:00:02]} Rf7
{[%clk 00:09:01]} {[%emt 00:00:54]} 25. Bxf5 {[%clk 00:09:21]} {[%emt
00:00:11]} Qd6 {[%clk 00:08:47]} {[%emt 00:00:20]} 26. Rxe5 {[%clk 00:08:19]}
{[%emt 00:01:07]} Kf8 {[%clk 00:07:42]} {[%emt 00:01:11]} 27. Bh6+ {[%clk
00:07:59]} {[%emt 00:00:25]} Kg8 {[%clk 00:07:34]} {[%emt 00:00:12]} 28. Re4
{[%clk 00:05:55]} {[%emt 00:02:08]} Qxe6 {[%clk 00:06:26]} {[%emt 00:01:14]} 29.
Bxe6 {[%clk 00:05:58]} {[%emt 00:00:02]} Nxd3 {[%clk 00:05:37]} {[%emt
00:00:54]} 30. Rg4+ {[%clk 00:05:41]} {[%emt 00:00:21]} Kh7 {[%clk 00:05:41]}
{[%emt 00:00:03]} 31. Bxf7 {[%clk 00:05:38]} {[%emt 00:00:07]} Kxh6 {[%clk
00:05:44]} {[%emt 00:00:02]} 32. Rxd4 {[%clk 00:05:28]} {[%emt 00:00:15]} Nxb2
{[%clk 00:05:34]} {[%emt 00:00:14]} 33. Rb1 {[%clk 00:05:18]} {[%emt 00:00:16]}
Na4 {[%clk 00:05:31]} {[%emt 00:00:09]} 34. Rd7 {[%clk 00:05:13]} {[%emt
00:00:10]} Bc5 {[%clk 00:05:27]} {[%emt 00:00:09]} 35. Rbxb7 {[%clk 00:04:59]}
{[%emt 00:00:19]} Rf8 {[%clk 00:05:17]} {[%emt 00:00:14]} 36. f4 {[%clk
00:04:42]} {[%emt 00:00:22]} Be3 {[%clk 00:05:20]} {[%emt 00:00:03]} 37. Rd6+
{[%clk 00:04:33]} {[%emt 00:00:13]} Kg7 {[%clk 00:05:04]} {[%emt 00:00:21]} 38.
Be8+ {[%clk 00:04:34]} {[%emt 00:00:05]} Kg8 {[%clk 00:05:04]} {[%emt
00:00:05]} 39. Bxa4 {[%clk 00:04:36]} {[%emt 00:00:02]} Bc5 {[%clk 00:05:01]}
{[%emt 00:00:09]} 40. Rg6+ {[%clk 00:04:26]} {[%emt 00:00:14]} Kh8 {[%clk
00:05:05]} {[%emt 00:00:02]} 41. Bc6 {[%clk 00:04:10]} {[%emt 00:00:20]} Be3
{[%clk 00:04:58]} {[%emt 00:00:13]} 42. Rh6+ {[%clk 00:04:10]} {[%emt
00:00:04]} Kg8 {[%clk 00:05:01]} {[%emt 00:00:02]} 43. Bd5+ {[%emt 00:00:01]}
1-0